{"text_format":"1","workbook":"xlsx","n_sheets":9,"sheets":["Debt","CountyStatistics","ContactInfo","General Data","General Obligation","Revenue","County Supplemental Data","RepEnts","Dropdowns"],"not_rendered":{"charts":0,"images":1,"macros":1,"external_links":0,"defined_names":12,"comments":0,"pivot_tables":0},"unopened":[],"bounds":{"document_bytes":16777216,"sheet_cells":100000,"rows_first":2000,"rows_last":500,"rows_between":2000,"halvings":0,"cell_chars":16384,"cell_head_chars":4096},"cells_cut":0,"cells_raw":0,"read":"whole","date_system":"1900"}

{"sheet":"Debt","index":0,"n_rows":35,"n_cols":12,"rows_kept":35,"cut":false,"hidden":true,"merged":[]}
["Tab","County","ReportingEntity","ReportingEntityType","FiscalYear","DebtType","Term","Purpose","BeginFY","IssuedFY","RetiredFY","EndFY"]
["General Obligation",{"$f":"PROPER(County)","v":""},{"$f":"PROPER(ReportEnt)","v":""},{"$f":"PROPER(ReportEntType)","v":""},{"$f":"FYEnd","v":"06/30/2025"},"General Obligation","NA","Drainage/Flood Control",{"$f":"'General Obligation'!B11","v":0},{"$f":"'General Obligation'!C11","v":0},{"$f":"'General Obligation'!D11","v":0},{"$f":"'General Obligation'!E11","v":0}]
["General Obligation","",{"$f":"PROPER(ReportEnt)","v":""},"","06/30/2025","General Obligation","NA","Governmental Facilities",{"$f":"'General Obligation'!B12","v":0},{"$f":"'General Obligation'!C12","v":0},{"$f":"'General Obligation'!D12","v":0},{"$f":"'General Obligation'!E12","v":0}]
["General Obligation","","","","06/30/2025","General Obligation","NA","Hospital",{"$f":"'General Obligation'!B13","v":0},{"$f":"'General Obligation'!C13","v":0},{"$f":"'General Obligation'!D13","v":0},{"$f":"'General Obligation'!E13","v":0}]
["General Obligation","","","","06/30/2025","General Obligation","NA","Parks/Recreation",{"$f":"'General Obligation'!B14","v":0},{"$f":"'General Obligation'!C14","v":0},{"$f":"'General Obligation'!D14","v":0},{"$f":"'General Obligation'!E14","v":0}]
["General Obligation","","","","06/30/2025","General Obligation","NA","Streets/Bridges",{"$f":"'General Obligation'!B15","v":0},{"$f":"'General Obligation'!C15","v":0},{"$f":"'General Obligation'!D15","v":0},{"$f":"'General Obligation'!E15","v":0}]
["General Obligation","","","","06/30/2025","General Obligation","NA","Water Utility Only",{"$f":"'General Obligation'!B16","v":0},{"$f":"'General Obligation'!C16","v":0},{"$f":"'General Obligation'!D16","v":0},{"$f":"'General Obligation'!E16","v":0}]
["General Obligation","","","","06/30/2025","General Obligation","NA","Sewer Utility Only",{"$f":"'General Obligation'!B17","v":0},{"$f":"'General Obligation'!C17","v":0},{"$f":"'General Obligation'!D17","v":0},{"$f":"'General Obligation'!E17","v":0}]
["General Obligation","","","","06/30/2025","General Obligation","NA","Water/Sewer Combined",{"$f":"'General Obligation'!B18","v":0},{"$f":"'General Obligation'!C18","v":0},{"$f":"'General Obligation'!D18","v":0},{"$f":"'General Obligation'!E18","v":0}]
["General Obligation","","","","06/30/2025","General Obligation","NA","Transit",{"$f":"'General Obligation'!B19","v":0},{"$f":"'General Obligation'!C19","v":0},{"$f":"'General Obligation'!D19","v":0},{"$f":"'General Obligation'!E19","v":0}]
["General Obligation","","","","06/30/2025","General Obligation","NA","Other",{"$f":"'General Obligation'!B20","v":0},{"$f":"'General Obligation'!C20","v":0},{"$f":"'General Obligation'!D20","v":0},{"$f":"'General Obligation'!E20","v":0}]
["General Obligation","","","","06/30/2025","General Obligation","NA","General Obligation Debt Issued by Referendum",{"$f":"'General Obligation'!B21","v":0},{"$f":"'General Obligation'!C21","v":0},{"$f":"'General Obligation'!D21","v":0},{"$f":"'General Obligation'!E21","v":0}]
["General Obligation","","","","06/30/2025","Other General Obligation","NA","Mortgage Loans",{"$f":"'General Obligation'!B25","v":0},{"$f":"'General Obligation'!C25","v":0},{"$f":"'General Obligation'!D25","v":0},{"$f":"'General Obligation'!E25","v":0}]
["General Obligation","","","","06/30/2025","Other General Obligation","NA","Bank Loans/Notes",{"$f":"'General Obligation'!B26","v":0},{"$f":"'General Obligation'!C26","v":0},{"$f":"'General Obligation'!D26","v":0},{"$f":"'General Obligation'!E26","v":0}]
["General Obligation","","","","06/30/2025","Other General Obligation","NA","Capital Lease Purchase",{"$f":"'General Obligation'!B27","v":0},{"$f":"'General Obligation'!C27","v":0},{"$f":"'General Obligation'!D27","v":0},{"$f":"'General Obligation'!E27","v":0}]
["General Obligation","","","","06/30/2025","Other General Obligation","NA","Other Lease Purchase Obligations",{"$f":"'General Obligation'!B28","v":0},{"$f":"'General Obligation'!C28","v":0},{"$f":"'General Obligation'!D28","v":0},{"$f":"'General Obligation'!E28","v":0}]
["General Obligation","","","","06/30/2025","Other General Obligation","NA","Certificates of Participation",{"$f":"'General Obligation'!B29","v":0},{"$f":"'General Obligation'!C29","v":0},{"$f":"'General Obligation'!D29","v":0},{"$f":"'General Obligation'!E29","v":0}]
["General Obligation","","","","06/30/2025","Other General Obligation","NA","Other General Obligations",{"$f":"'General Obligation'!B30","v":0},{"$f":"'General Obligation'!C30","v":0},{"$f":"'General Obligation'!D30","v":0},{"$f":"'General Obligation'!E30","v":0}]
["General Obligation","","","","06/30/2025","Other General Obligation","NA","General Obligation Debt Issued by Referendum",{"$f":"'General Obligation'!B31","v":0},{"$f":"'General Obligation'!C31","v":0},{"$f":"'General Obligation'!D31","v":0},{"$f":"'General Obligation'!E31","v":0}]
["Revenue","","","","06/30/2025","Revenue","NA","Drainage/Flood Control",{"$f":"Revenue!B11","v":0},{"$f":"Revenue!C11","v":0},{"$f":"Revenue!D11","v":0},{"$f":"Revenue!E11","v":0}]
["Revenue","","","","06/30/2025","Revenue","NA","Governmental Facilities",{"$f":"Revenue!B12","v":0},{"$f":"Revenue!C12","v":0},{"$f":"Revenue!D12","v":0},{"$f":"Revenue!E12","v":0}]
["Revenue","","","","06/30/2025","Revenue","NA","Hospital",{"$f":"Revenue!B13","v":0},{"$f":"Revenue!C13","v":0},{"$f":"Revenue!D13","v":0},{"$f":"Revenue!E13","v":0}]
["Revenue","","","","06/30/2025","Revenue","NA","Parks/Recreation",{"$f":"Revenue!B14","v":0},{"$f":"Revenue!C14","v":0},{"$f":"Revenue!D14","v":0},{"$f":"Revenue!E14","v":0}]
["Revenue","","","","06/30/2025","Revenue","NA","Streets/Bridges",{"$f":"Revenue!B15","v":0},{"$f":"Revenue!C15","v":0},{"$f":"Revenue!D15","v":0},{"$f":"Revenue!E15","v":0}]
["Revenue","","","","06/30/2025","Revenue","NA","Water Utility Only",{"$f":"Revenue!B16","v":0},{"$f":"Revenue!C16","v":0},{"$f":"Revenue!D16","v":0},{"$f":"Revenue!E16","v":0}]
["Revenue","","","","06/30/2025","Revenue","NA","Sewer Utility Only",{"$f":"Revenue!B17","v":0},{"$f":"Revenue!C17","v":0},{"$f":"Revenue!D17","v":0},{"$f":"Revenue!E17","v":0}]
["Revenue","","","","06/30/2025","Revenue","NA","Water/Sewer Combined",{"$f":"Revenue!B18","v":0},{"$f":"Revenue!C18","v":0},{"$f":"Revenue!D18","v":0},{"$f":"Revenue!E18","v":0}]
["Revenue","","","","06/30/2025","Revenue","NA","Transit",{"$f":"Revenue!B19","v":0},{"$f":"Revenue!C19","v":0},{"$f":"Revenue!D19","v":0},{"$f":"Revenue!E19","v":0}]
["Revenue","","","","06/30/2025","Revenue","NA","Other",{"$f":"Revenue!B20","v":0},{"$f":"Revenue!C20","v":0},{"$f":"Revenue!D20","v":0},{"$f":"Revenue!E20","v":0}]
["Revenue","","","","06/30/2025","Other Revenue","NA","Mortgage Loans",{"$f":"Revenue!B24","v":0},{"$f":"Revenue!C24","v":0},{"$f":"Revenue!D24","v":0},{"$f":"Revenue!E24","v":0}]
["Revenue","","","","06/30/2025","Other Revenue","NA","Bank Loans/Notes",{"$f":"Revenue!B25","v":0},{"$f":"Revenue!C25","v":0},{"$f":"Revenue!D25","v":0},{"$f":"Revenue!E25","v":0}]
["Revenue","","","","06/30/2025","Other Revenue","NA","Capital Lease Purchase",{"$f":"Revenue!B26","v":0},{"$f":"Revenue!C26","v":0},{"$f":"Revenue!D26","v":0},{"$f":"Revenue!E26","v":0}]
["Revenue","","","","06/30/2025","Other Revenue","NA","Other Lease Purchase Obligations",{"$f":"Revenue!B27","v":0},{"$f":"Revenue!C27","v":0},{"$f":"Revenue!D27","v":0},{"$f":"Revenue!E27","v":0}]
["Revenue","","","","06/30/2025","Other Revenue","NA","Certificates of Participation",{"$f":"Revenue!B28","v":0},{"$f":"Revenue!C28","v":0},{"$f":"Revenue!D28","v":0},{"$f":"Revenue!E28","v":0}]
["Revenue","","","","06/30/2025","Other Revenue","NA","Other Revenue Debt",{"$f":"Revenue!B29","v":0},{"$f":"Revenue!C29","v":0},{"$f":"Revenue!D29","v":0},{"$f":"Revenue!E29","v":0}]

{"sheet":"CountyStatistics","index":1,"n_rows":19,"n_cols":9,"rows_kept":19,"cut":false,"hidden":true,"merged":[]}
["Tab","County","ReportingEntity","FiscalYear","Section","Category","Statistic","StatisticValue","StatisticPercent"]
["County Supplemental Data",{"$f":"PROPER(County)","v":""},{"$f":"PROPER(ReportEnt)","v":""},{"$f":"FY","v":"06/30/2025"},"Tax Data","Debt Limit","8% of Assessed Property Valuation",{"$f":"'County Supplemental Data'!C14","v":0},0]
["County Supplemental Data","","","06/30/2025","Tax Data","Debt Limit","General Obligation Debt Outstanding",{"$f":"'County Supplemental Data'!C15","v":0},0]
["County Supplemental Data","","","06/30/2025","Tax Data","Debt Limit","Less General Obligation Debt Issued by Referendum",{"$f":"'County Supplemental Data'!C16","v":0},0]
["County Supplemental Data","","","06/30/2025","Tax Data","Debt Limit","Total General Obligation Debt Outstanding",{"$f":"'County Supplemental Data'!C17","v":0},0]
["County Supplemental Data","","","06/30/2025","Tax Data","Debt Limit","Debt Margin",{"$f":"'County Supplemental Data'!C18","v":0},0]
["County Supplemental Data","","","06/30/2025","Tax Data","General Tax Data","Assessed Property Valuation",{"$f":"'County Supplemental Data'!C10","v":0},0]
["County Supplemental Data","","","06/30/2025","Tax Data","General Tax Data","Current Tax Collections",0,{"$f":"'County Supplemental Data'!D11","v":0}]
["County Supplemental Data","","","06/30/2025","Economic Profile","Major Employers",{"$f":"IF(PROPER('County Supplemental Data'!A31)=\"\",0,PROPER('County Supplemental Data'!A31))","v":0},{"$f":"'County Supplemental Data'!D31","v":0},0]
["County Supplemental Data","","","06/30/2025","Economic Profile","Major Employers",{"$f":"IF(PROPER('County Supplemental Data'!A32)=\"\",0,PROPER('County Supplemental Data'!A32))","v":0},{"$f":"'County Supplemental Data'!D32","v":0},0]
["County Supplemental Data","","","06/30/2025","Economic Profile","Major Employers",{"$f":"IF(PROPER('County Supplemental Data'!A33)=\"\",0,PROPER('County Supplemental Data'!A33))","v":0},{"$f":"'County Supplemental Data'!D33","v":0},0]
["County Supplemental Data","","","06/30/2025","Economic Profile","Major Employers",{"$f":"IF(PROPER('County Supplemental Data'!A34)=\"\",0,PROPER('County Supplemental Data'!A34))","v":0},{"$f":"'County Supplemental Data'!D34","v":0},0]
["County Supplemental Data","","","06/30/2025","Economic Profile","Major Employers",{"$f":"IF(PROPER('County Supplemental Data'!A35)=\"\",0,PROPER('County Supplemental Data'!A35))","v":0},{"$f":"'County Supplemental Data'!D35","v":0},0]
["County Supplemental Data","","","06/30/2025","Tax Data","Revenue Sources","Property Taxes",{"$f":"'County Supplemental Data'!C21","v":0},{"$f":"'County Supplemental Data'!D21","v":""}]
["County Supplemental Data","","","06/30/2025","Tax Data","Revenue Sources","State Aid",{"$f":"'County Supplemental Data'!C22","v":0},{"$f":"'County Supplemental Data'!D22","v":""}]
["County Supplemental Data","","","06/30/2025","Tax Data","Revenue Sources","Federal Aid",{"$f":"'County Supplemental Data'!C23","v":0},{"$f":"'County Supplemental Data'!D23","v":""}]
["County Supplemental Data","","","06/30/2025","Tax Data","Revenue Sources","Fees, Fines and Forfeitures",{"$f":"'County Supplemental Data'!C24","v":0},{"$f":"'County Supplemental Data'!D24","v":""}]
["County Supplemental Data","","","06/30/2025","Tax Data","Revenue Sources","Interest Income",{"$f":"'County Supplemental Data'!C25","v":0},{"$f":"'County Supplemental Data'!D25","v":""}]
["County Supplemental Data","","","06/30/2025","Tax Data","Revenue Sources","Other",{"$f":"'County Supplemental Data'!C26","v":0},{"$f":"'County Supplemental Data'!D26","v":""}]

{"sheet":"ContactInfo","index":2,"n_rows":2,"n_cols":9,"rows_kept":2,"cut":false,"hidden":true,"merged":[]}
["Tab","County","ReportingEntity","ReportingEntityType","FiscalYear","PreparedBy","Email","Phone","Fax"]
["General Data",{"$f":"PROPER(County)","v":""},{"$f":"PROPER(ReportEnt)","v":""},{"$f":"PROPER(ReportEntType)","v":""},{"$f":"FY","v":"06/30/2025"},{"$f":"Prepared","v":0},{"$f":"TRIM(PrepEmail)","v":""},{"$f":"TRIM(SUBSTITUTE(SUBSTITUTE(SUBSTITUTE(PrepPhone,\"-\",\"\"),\")\",\"\"),\"(\",\"\"))","v":""},{"$f":"TRIM(SUBSTITUTE(SUBSTITUTE(SUBSTITUTE(PrepFax,\"-\",\"\"),\")\",\"\"),\"(\",\"\"))","v":""}]

{"sheet":"General Data","index":3,"n_rows":26,"n_cols":6,"rows_kept":26,"cut":false,"hidden":false,"merged":[[3,1,3,4],[2,1,2,4],[8,1,8,4],[0,0,1,4],[12,1,12,4],[7,1,7,4],[9,1,9,2],[9,3,9,4],[5,1,5,4],[4,1,4,4]]}
["South Carolina Office of the State Treasurer\nReport of Local Government Debt"]
[]
["County",{"$f":"_xlfn.IFNA(VLOOKUP(ReportEnt,RepEnts!$A$3:$C$581,2,0),\"\")","v":""}]
["Name of Reporting Entity"]
["Reporting Entity Type",{"$f":"_xlfn.IFNA(VLOOKUP(ReportEnt,RepEnts!$A$3:$C$581,3,0),\"\")","v":""}]
["Fiscal Year Ending Date",{"$f":"IF(MONTH(TODAY())>6,\"06/30/\"&YEAR(TODAY()),\"06/30/\"&YEAR(TODAY())-1)","v":"06/30/2025"},null,null,null,"County"]
[null,"Always download the latest excel from SC Treasurer Office website"]
["Preparer's name",null,null,null,null,"vcbvc"]
["Preparer's email address",null,null,null,null,"School District"]
["Preparer's phone/fax",null,null,null,null,"Special Purpose District"]
[null,"phone",null,"fax"]
[]
["Return this form to ","sto.lgdr@sto.sc.gov"]
[]
["Alerts"]
[{"$f":"IF(AND(B5=\"County\",'County Supplemental Data'!C18<0),\"General Obligation Debt Exceeds Debt Limitation.  Please provide supporting justification.\",\"\")","v":""}]
["Instructions:"]
["County will populate upon name selection"]
["Name of Reporting Entity is your county, city, town, school district, or special purpose district.  Select from dropdown"]
["Reporting Entity will populate upon name selection"]
["Fiscal Year is prefilled for your convenience and should not be changed"]
["You will need to provide the Preparer's name, email address, and phone/ fax numbers"]
["Please note the tabs at the bottom will take you to the actual report to fill in your information"]
["Once the report is completely filled out please press the Email Form button to send directly to the STO office "]
["Form Version - 10-21-25"]
["v20181116"]

{"sheet":"General Obligation","index":4,"n_rows":41,"n_cols":5,"rows_kept":41,"cut":false,"hidden":false,"merged":[[40,0,40,4],[2,1,2,3],[38,0,38,4],[7,0,7,4],[5,0,5,4],[3,0,3,4]]}
["County",{"$f":"PROPER(IF('General Data'!B3:D3<>\"\",'General Data'!B3:D3,\"\"))","v":""}]
["Name of Reporting Entity",{"$f":"PROPER(IF('General Data'!B4:D4<>\"\",'General Data'!B4:D4,\"\"))","v":""}]
["Fiscal Year Ending",{"$f":"IF('General Data'!B6:D6<>\"\",'General Data'!B6:D6,\"\")","v":"06/30/2025"}]
["General Obligation Debt Outstanding, Issued and Retired"]
[]
["Instructions:  In these sections, include all debt that is to be repaid from the governmental entity's general fund.\nGeneral obligation debt is that which is secured by the full faith, credit and taxing power of the governmental entity."]
[]
["Section I: General Obligation Debt Outstanding Principal Amounts Only"]
[]
["General Obligation Bond Debt","Outstanding at Beginning of Fiscal Year","Issued During Fiscal Year","Amount Retired During Fiscal Year","Outstanding at End of Fiscal Year"]
["Drainage/Flood Control",null,null,null,{"$f":"B11+C11-D11","v":0}]
["Governmental Facilities",null,null,null,{"$f":"B12+C12-D12","v":0}]
["Hospital",null,null,null,0]
["Parks/Recreation",null,null,null,0]
["Streets/Bridges",null,null,null,0]
["Water Utility Only",null,null,null,0]
["Sewer Utility Only",null,null,null,0]
["Water/Sewer Combined",null,null,null,0]
["Transit",null,null,null,0]
["Other",null,null,null,0]
["General Obligation Debt Issued by Referendum",null,null,null,0]
["Subtotal General Obligation Bond Debt",{"$f":"SUM(B11:B21)","v":0},{"$f":"SUM(C11:C21)","v":0},{"$f":"SUM(D11:D21)","v":0},{"$f":"SUM(E11:E21)","v":0}]
[]
["Other General Obligation Debt","Outstanding at Beginning of Fiscal Year","Issued During Fiscal Year","Amount Retired During Fiscal Year","Outstanding at End of Fiscal Year"]
["Mortgage Loans",null,null,null,{"$f":"B25+C25-D25","v":0}]
["Bank Loans/Notes",null,null,null,{"$f":"B26+C26-D26","v":0}]
["Capital Lease Purchase",null,null,null,0]
["Other Lease Purchase Obligations",null,null,null,0]
["Certificates of Participation",null,null,null,0]
["Other General Obligations",null,null,null,0]
["General Obligation Debt Issued by Referendum",null,null,null,{"$f":"B31+C31-D31","v":0}]
["Subtotal Other General Obligation Debt",{"$f":"SUM(B25:B31)","v":0},{"$f":"SUM(C25:C31)","v":0},{"$f":"SUM(D25:D31)","v":0},{"$f":"SUM(E25:E31)","v":0}]
[]
["Grand Total - General Obligation Debt Issued by Referendum",{"$f":"B21+B31","v":0},{"$f":"C21+C31","v":0},{"$f":"D21+D31","v":0},{"$f":"E21+E31","v":0}]
["Grand Total - General Obligation Debt",{"$f":"SUM(B22,B32)","v":0},{"$f":"SUM(C22,C32)","v":0},{"$f":"SUM(D22,D32)","v":0},{"$f":"E32+E22","v":0}]
[]
[]
["IMPORTANT NOTICE:"]
["The amounts reflected in Beginning Balance must tie to the Ending Balance of the prior year's Audited Financial Statements.  Ending balances must tie to the Ending Balance of the current (reporting year) year's Audited Financial Statements. Please provide explanation for any variances to the reporting in the Audited Financial Statements."]
[]
["Included in this page should be an General Obligation debt.  This is any debt that would be paid by the citizens of the reporting entity. Please note that any debt issued by bond referendum is reported separately. "]

{"sheet":"Revenue","index":5,"n_rows":38,"n_cols":5,"rows_kept":38,"cut":false,"hidden":false,"merged":[[37,0,37,4],[35,0,35,4],[2,1,2,3],[3,0,3,4],[5,0,5,4],[7,0,7,4]]}
["County",{"$f":"PROPER(IF('General Data'!B3:D3<>\"\",'General Data'!B3:D3,\"\"))","v":""}]
["Name of Reporting Entity",{"$f":"PROPER(IF('General Data'!B4:D4<>\"\",'General Data'!B4:D4,\"\"))","v":""}]
["Fiscal Year Ending",{"$f":"IF('General Data'!B6:D6<>\"\",'General Data'!B6:D6,\"\")","v":"06/30/2025"}]
["Revenue Debt Outstanding, Issued and Retired"]
[]
["Instructions:  In these sections, include all debt that is to be repaid from revenue producing activities.\nRevenue debt is that which is secured by the revenue produced from the project for which the borrowing was made."]
[]
["Section I: Revenue Bond Debt Outstanding Principal Amounts Only"]
[]
["Revenue Bond Debt","Outstanding at Beginning of Fiscal Year","Issued During Fiscal Year","Amount Retired During Fiscal Year","Outstanding at End of Fiscal Year"]
["Drainage/Flood Control",null,null,null,{"$f":"B11+C11-D11","v":0}]
["Governmental Facilities",null,null,null,{"$f":"B12+C12-D12","v":0}]
["Hospital",null,null,null,0]
["Parks/Recreation",null,null,null,0]
["Streets/Bridges",null,null,null,0]
["Water Utility Only",null,null,null,0]
["Sewer Utility Only",null,null,null,0]
["Water/Sewer Combined",null,null,null,0]
["Transit",null,null,null,0]
["Other",null,null,null,0]
["Subtotal Revenue Bond Debt",{"$f":"SUM(B11:B20)","v":0},{"$f":"SUM(C11:C20)","v":0},{"$f":"SUM(D11:D20)","v":0},0]
[]
["Other Revenue Bond Debt","Outstanding at Beginning of Fiscal Year","Issued During Fiscal Year","Amount Retired During Fiscal Year","Outstanding at End of Fiscal Year"]
["Mortgage Loans",null,null,null,{"$f":"B24+C24-D24","v":0}]
["Bank Loans/Notes",null,null,null,0]
["Capital Lease Purchase",null,null,null,0]
["Other Lease Purchase Obligations",null,null,null,0]
["Certificates of Participation",null,null,null,0]
["Other Revenue Debt",null,null,null,0]
["Subtotal Other Revenue Bond Debt",{"$f":"SUM(B24:B29)","v":0},{"$f":"SUM(C24:C29)","v":0},{"$f":"SUM(D24:D29)","v":0},0]
[]
["Grand Total - Revenue Bond Debt",{"$f":"SUM(B21,B30)","v":0},{"$f":"SUM(C21,C30)","v":0},{"$f":"SUM(D21,D30)","v":0},0]
[]
[]
["IMPORTANT NOTICE:"]
["The amounts reflected in Beginning Balance must tie to the Ending Balance of the prior year's Audited Financial Statements.  Ending balances must tie to the Ending Balance of the current (reporting year) year's Audited Financial Statements. Please provide explanation for any variances to the reporting in the Audited Financial Statements."]
[]
["Revenue Bond issuances are bonds/loans that are paid with a designated source of income. Only debt associated with a designated source of revenue should be reported on this page. "]

{"sheet":"County Supplemental Data","index":6,"n_rows":40,"n_cols":4,"rows_kept":40,"cut":false,"hidden":false,"merged":[[34,0,34,2],[26,0,26,1],[32,0,32,2],[31,0,31,2],[30,0,30,2],[33,0,33,2],[28,0,28,3],[29,0,29,2],[5,0,5,3],[7,0,7,3],[8,0,8,1],[3,0,3,3],[10,0,10,1],[9,0,9,1],[14,0,14,1],[16,0,16,1],[13,0,13,1],[12,0,12,1],[21,0,21,1],[20,0,20,1],[19,0,19,1],[17,0,17,1],[24,0,24,1],[23,0,23,1],[22,0,22,1],[25,0,25,1],[15,0,15,1]]}
["County",{"$f":"PROPER(IF('General Data'!B3:D3<>\"\",'General Data'!B3:D3,\"\"))","v":""}]
["Name of Reporting Entity",{"$f":"PROPER(IF('General Data'!B4:D4<>\"\",'General Data'!B4:D4,\"\"))","v":""}]
["Fiscal Year Ending",{"$f":"IF('General Data'!B6:D6<>\"\",'General Data'!B6:D6,\"\")","v":"06/30/2025"}]
["County Supplemental Data"]
[]
["Instructions:  In these sections, include most recent information available to the county concerning its taxes and collections,\nsources of revenue, and major employers."]
[]
["Section I:  Tax Data"]
["General Tax Data",null,"Amount","Percent"]
["Assessed Property Valuation"]
["Current Tax Collections"]
[]
["Compliance with Debt Limitation"]
["8% of Assessed Property Valuation",null,{"$f":"C10*8%","v":0}]
["General Obligation Debt Outstanding",null,{"$f":"SUM('General Obligation'!E35)","v":0}]
["Less General Obligation Debt Issued by Referendum",null,{"$f":"'General Obligation'!E34","v":0}]
["Total General Obligation Debt Outstanding",null,{"$f":"C15-C16","v":0}]
["Debt Margin",null,{"$f":"C14-C17","v":0}]
[]
["Revenue Sources"]
["Property Taxes",null,null,{"$f":"IF(ISERROR(C21/$C$27),\"\",ROUND(C21/$C$27,8))","v":""}]
["State Aid",null,null,{"$f":"IF(ISERROR(C22/$C$27),\"\",ROUND(C22/$C$27,8))","v":""}]
["Federal Aid",null,null,""]
["Fees, Fines and Forfeitures",null,null,""]
["Interest Income",null,null,""]
["Other",null,null,""]
["Total Revenue Sources",null,{"$f":"SUM(C21:C26)","v":0},""]
[]
["Section II:  Economic Profile"]
["Five Major Employers",null,null,"Number Employed in County"]
[]
[]
[]
[]
[]
[]
["This page needs to be completed by the county treasurer.  The Assessed Property valuation should be reported by the county assessor the county treasurer. "]
["Compliance with Debt Limitation will automatically populate. "]
["Revenue Sources should be completed by the county treasurer. "]
["Economic Profile should be completed by the county treasurer.  "]

{"sheet":"RepEnts","index":7,"n_rows":571,"n_cols":3,"rows_kept":571,"cut":false,"hidden":true,"merged":[]}
["ReportingEntity","County","ReportingEntityType"]
[]
["Abbeville County","Abbeville","County"]
["Abbeville County School District 60","Abbeville","School District"]
["Aiken County","Aiken","County"]
["Aiken County Public Service Authority","Aiken","Special Purpose District"]
["Allendale County","Allendale","County"]
["Allendale County School District","Allendale","School District"]
["Anderson County","Anderson","County"]
["Anderson County Fire Protection Commission","Anderson","Special Purpose District"]
["Anderson School District #1","Anderson","School District"]
["Anderson School District #2","Anderson","School District"]
["Anderson School District #3","Anderson","School District"]
["Anderson School District #4","Anderson","School District"]
["Anderson School District #5","Anderson","School District"]
["Arkwright Fire District","Spartanburg","Special Purpose District"]
["Bamberg County","Bamberg","County"]
["Bamberg County Hospital","Bamberg","Special Purpose District"]
["Bamberg County School District 3","Bamberg","School District"]
["Barnwell County","Barnwell","County"]
["Barnwell County School District 01","Barnwell","School District"]
["Barnwell School District 45","Barnwell","School District"]
["Barnwell School District 48","Barnwell","School District"]
["Bath Water & Sewer District","Aiken","Special Purpose District"]
["Beaufort County","Beaufort","County"]
["Beaufort County School District","Beaufort","School District"]
["Beech Island Rural Community Water District","Aiken","Special Purpose District"]
["Belmont Fire And Sanitation District","Greenville","Special Purpose District"]
["Belton-Honea Path Water Authority","Anderson","Special Purpose District"]
["Belvedere Fire District","Aiken","Special Purpose District"]
["Berea Public Service District","Greenville","Special Purpose District"]
["Berkeley County ","Berkeley","County"]
["Berkeley County School District","Berkeley","School District"]
["Berkeley County Water & Sanitation","Berkeley","Special Purpose District"]
["Big Creek Watershed Conservation District","Anderson","Special Purpose District"]
["Bluffton Township Fire District","Beaufort","Special Purpose District"]
["Board Of Public Works","Cherokee","Special Purpose District"]
["Boiling Springs Fire Department","Spartanburg","Special Purpose District"]
["Boiling Springs Fire District - Greenville","Greenville","Special Purpose District"]
["Bonham Fire District","Union","Special Purpose District"]
["Breezy Hill Water & Sewer","Aiken","Special Purpose District"]
["Broad Creek Public Service District","Beaufort","Special Purpose District"]
["Broadmouth Creek Watershed Conservation District","Anderson","Special Purpose District"]
["Broadway Water & Sewerage District","Anderson","Special Purpose District"]
["Brown's Creek Water Company","Union","Special Purpose District"]
["Brown's Creek Water Shed","Union","Special Purpose District"]
["Brushy Creek Watershed Conservation District","Anderson","Special Purpose District"]
["Buffalo Fire District","Union","Special Purpose District"]
["Burton Fire District","Beaufort","Special Purpose District"]
["Calhoun County","Calhoun","County"]
["Calhoun School District","Calhoun","School District"]
["Campobello Fire District","Spartanburg","Special Purpose District"]
["Canebrake Fire And Sewer","Greenville","Special Purpose District"]
["Carlisle Fire District","Union","Special Purpose District"]
["Ceasars Head Fire Service Area","Greenville","Special Purpose District"]
["Charleston County","Charleston","County"]
["Charleston County School District","Charleston","School District"]
["Cherokee County ","Cherokee","County"]
["Cherokee County School District 1","Cherokee","School District"]
["Cherokee Creek Volunteer Fire Department","Cherokee","Special Purpose District"]
["Cherokee Recreation District","Cherokee","Special Purpose District"]
["Cherokee Springs Fire District","Spartanburg","Special Purpose District"]
["Chesnee Fire District","Spartanburg","Special Purpose District"]
["Chester County","Chester","County"]
["Chester County School District","Chester","School District"]
["Chester Fire District","Chester","Special Purpose District"]
["Chesterfield County","Chesterfield","County"]
["Chesterfield County School District","Chesterfield","School District"]
["City Of Abbeville","Abbeville","Municipality"]
["City Of Aiken","Aiken","Municipality"]
["City Of Anderson","Anderson","Municipality"]
["City Of Bamberg","Bamberg","Municipality"]
["City Of Barnwell","Barnwell","Municipality"]
["City Of Beaufort","Beaufort","Municipality"]
["City Of Belton","Anderson","Municipality"]
["City Of Bennettsville","Marlboro","Municipality"]
["City Of Bishopville","Lee","Municipality"]
["City Of Camden","Kershaw","Municipality"]
["City Of Cayce","Lexington","Municipality"]
["City Of Charleston","Charleston","Municipality"]
["City Of Chesnee","Spartanburg","Municipality"]
["City Of Chester","Chester","Municipality"]
["City Of Clemson","Pickens","Municipality"]
["City Of Clinton","Laurens","Municipality"]
["City Of Columbia","Richland","Municipality"]
["City Of Conway","Horry","Municipality"]
["City Of Darlington","Darlington","Municipality"]
["City Of Denmark","Bamberg","Municipality"]
["City Of Dillon","Dillon","Municipality"]
["City Of Easley","Pickens","Municipality"]
["City Of Florence","Florence","Municipality"]
["City Of Folly Beach","Charleston","Municipality"]
["City Of Forest Acres","Richland","Municipality"]
["City Of Fountain Inn","Greenville","Municipality"]
["City Of Gaffney","Cherokee","Municipality"]
["City Of Georgetown","Georgetown","Municipality"]
["City Of Goose Creek","Berkeley","Municipality"]
["City Of Goose Creek Recreation Center","Berkeley","Special Purpose District"]
["City Of Greenville","Greenville","Municipality"]
["City Of Greenwood","Greenwood","Municipality"]
["City Of Greer","Greenville","Municipality"]
["City Of Hanahan","Berkeley","Municipality"]
["City Of Hardeeville","Jasper","Municipality"]
["City Of Hartsville","Darlington","Municipality"]
["City Of Inman","Spartanburg","Municipality"]
["City Of Isle Of Palms","Charleston","Municipality"]
["City Of Johnsonville","Florence","Municipality"]
["City Of Lake City","Florence","Municipality"]
["City Of Lamar","Darlington","Municipality"]
["City Of Lancaster","Lancaster","Municipality"]
["City Of Landrum","Spartanburg","Municipality"]
["City Of Laurens","Laurens","Municipality"]
["City Of Liberty","Pickens","Municipality"]
["City Of Loris","Horry","Municipality"]
["City Of Manning","Clarendon","Municipality"]
["City Of Marion","Marion","Municipality"]
["City Of Mauldin","Greenville","Municipality"]
["City Of Mullins","Marion","Municipality"]
["City Of Myrtle Beach","Horry","Municipality"]
["City Of New Ellenton","Aiken","Municipality"]
["City Of Newberry","Newberry","Municipality"]
["City Of North Augusta","Aiken","Municipality"]
["City Of North Charleston","Charleston","Municipality"]
["City Of North Myrtle Beach","Horry","Municipality"]
["City Of Orangeburg","Orangeburg","Municipality"]
["City Of Pickens","Pickens","Municipality"]
["City Of Rock Hill","York","Municipality"]
["City Of Seneca","Oconee","Municipality"]
["City Of Simpsonville","Greenville","Municipality"]
["City Of Spartanburg","Spartanburg","Municipality"]
["City Of Sumter","Sumter","Municipality"]
["City Of Tega Cay","York","Municipality"]
["City Of Travelers Rest","Greenville","Municipality"]
["City Of Union","Union","Municipality"]
["City Of Walhalla","Oconee","Municipality"]
["City Of Walterboro","Colleton","Municipality"]
["City Of Wellford","Spartanburg","Municipality"]
["City Of West Columbia","Lexington","Municipality"]
["City Of Westminster","Oconee","Municipality"]
["City Of Woodruff","Spartanburg","Municipality"]
["City Of York","York","Municipality"]
["Clarendon County","Clarendon","County"]
["Clarendon County Fire Department","Clarendon","Special Purpose District"]
["Clarendon County School District ","Clarendon","School District"]
["Clear Springs Fire District","Greenville","Special Purpose District"]
["Clearwater Water & Sewer District","Aiken","Special Purpose District"]
["College Acres Public Works","Aiken","Special Purpose District"]
["Colleton County","Colleton","County"]
["Colleton County Fire-Rescue","Colleton","Special Purpose District"]
["Colleton County School District","Colleton","School District"]
["Columbia Metropolitan Airport","Lexington","Special Purpose District"]
["Consolidated School District Of Aiken County","Aiken","School District"]
["Converse Area Fire District","Spartanburg","Special Purpose District"]
["Cooley Springs Fingerville Fire District","Spartanburg","Special Purpose District"]
["Cross Anchor Fire District","Spartanburg","Special Purpose District"]
["Cross Hill Rural Fire Department","Laurens","Special Purpose District"]
["Cross Keys Fire District","Union","Special Purpose District"]
["Darlington County","Darlington","County"]
["Darlington County Fire District","Darlington","Special Purpose District"]
["Darlington County School District","Darlington","School District"]
["Darlington Water & Sewer Authority","Darlington","Special Purpose District"]
["Daufuskie Island Fire District","Beaufort","Special Purpose District"]
["Dillon County","Dillon","County"]
["Dillon County Board Of Education","Dillon","School District"]
["Dillon County School District 3","Dillon","School District"]
["Dillon County School District 4","Dillon","School District"]
["Donalds-Due West Water & Sewer Authority","Abbeville","Special Purpose District"]
["Donaldson Fire Service Area","Greenville","Special Purpose District"]
["Dorchester County","Dorchester","County"]
["Dorchester County Fire District","Dorchester","Special Purpose District"]
["Dorchester County School District 2","Dorchester","School District"]
["Dorchester County School District 4","Dorchester","School District"]
["Drayton Fire District","Spartanburg","Special Purpose District"]
["Duncan Chapel Fire District","Greenville","Special Purpose District"]
["Duncan Fire District","Spartanburg","Special Purpose District"]
["Dunklin Fire District","Greenville","Special Purpose District"]
["Durbin Creek Rural Fire Department","Laurens","Special Purpose District"]
["East Richland Public Service District","Richland","Special Purpose District"]
["Edgefield County","Edgefield","County"]
["Edgefield County Hospital","Edgefield","Special Purpose District"]
["Edgefield County School District","Edgefield","School District"]
["Edgefield County Water & Sewer Authority","Edgefield","Special Purpose District"]
["Ekom Rural Fire Department","Laurens","Special Purpose District"]
["Enoree Fire District","Spartanburg","Special Purpose District"]
["Fairfield County","Fairfield","County"]
["Fairfield County School District","Fairfield","School District"]
["Florence County","Florence","County"]
["Florence County School District 1","Florence","School District"]
["Florence County School District 2","Florence","School District"]
["Florence County School District 3","Florence","School District"]
["Florence County School District 5","Florence","School District"]
["Foothills Fire Service Area","Greenville","Special Purpose District"]
["Fort Lawn Fires District ","Chester","Special Purpose District"]
["Fountain Inn Fire District","Greenville","Special Purpose District"]
["Fox Creek Charter School","Edgefield","School District"]
["Fripp Island Public Service District","Beaufort","Special Purpose District"]
["Gantt District","Greenville","Special Purpose District"]
["Gaston Rural Community Water District","Lexington","Special Purpose District"]
["Georgetown County","Georgetown","County"]
["Georgetown County School District","Georgetown","School District"]
["Georgetown County Water & Sewer District","Georgetown","Special Purpose District"]
["Gilbert-Summit Rural Water District","Lexington","Special Purpose District"]
["Glassy Mountain Fire Service District","Greenville","Special Purpose District"]
["Glendale Fire District","Spartanburg","Special Purpose District"]
["Glenn Springs Pauline Fire District","Spartanburg","Special Purpose District"]
["Gowensville Fire District","Spartanburg","Special Purpose District"]
["Gowensville Public Service District","Greenville","Special Purpose District"]
["Gray Court Rural Fire Department","Laurens","Special Purpose District"]
["Greenpond Fire Department","Laurens","Special Purpose District"]
["Greenville Arena District","Greenville","Special Purpose District"]
["Greenville County","Greenville","County"]
["Greenville County Museum of Art","Greenville","Special Purpose District"]
["Greenville County Recreation District","Greenville","Special Purpose District"]
["Greenville County School District","Greenville","School District"]
["Greenville Fire Service Area","Greenville","Special Purpose District"]
["Greenwood County","Greenwood","County"]
["Greenwood Metropolitan Sewer District","Greenwood","Special Purpose District"]
["Greenwood School District 50","Greenwood","School District"]
["Greenwood School District 51","Greenwood","School District"]
["Greenwood School District 52","Greenwood","School District"]
["Greer Fire Service Area","Greenville","Special Purpose District"]
["Hampton County","Hampton","County"]
["Hampton County School District","Hampton","School District"]
["Hannah-Salem Friendfield Fire District","Florence","Special Purpose District"]
["Hartsville Community Center Building Commission","Darlington","Special Purpose District"]
["Hickory Tavern Rural Fire Department","Laurens","Special Purpose District"]
["Highway 88 Water Company","Anderson","Special Purpose District"]
["Hilltop Fire District","Spartanburg","Special Purpose District"]
["Hilton Head No. 1 Public Service District","Beaufort","Special Purpose District"]
["Hobbysville Fire District","Spartanburg","Special Purpose District"]
["Holly Springs Fire District","Spartanburg","Special Purpose District"]
["Homeland Park Water","Anderson","Special Purpose District"]
["Horry County","Horry","County"]
["Horry County Fire Protection","Horry","Special Purpose District"]
["Horry County School District","Horry","School District "]
["Hospital District","Clarendon","Special Purpose District"]
["Inman Community Fire District","Spartanburg","Special Purpose District"]
["Inman-Campobello Water District","Spartanburg","Special Purpose District"]
["Irmo Chapin Recreation District","Lexington","Special Purpose District"]
["Irmo Fire District","Lexington","Special Purpose District"]
["James Island Public Service District","Charleston","Special Purpose District"]
["Jasper County","Jasper","County"]
["Jasper County School District","Jasper","School District"]
["Joanna Rural Fire Department","Laurens","Special Purpose District"]
["Jonesville Fire District","Union","Special Purpose District"]
["Kelly-Kelton Fire District","Union","Special Purpose District"]
["Keowee Fire Tax District","Oconee","Special Purpose District "]
["Kershaw County","Kershaw","County"]
["Kershaw County School District","Kershaw","School District"]
["Lady's Island St Helena Fire District","Beaufort","Special Purpose District"]
["Lake Cunningham Fire District","Greenville","Special Purpose District"]
["Lancaster County","Lancaster","County"]
["Lancaster County Natural Gas Authority","Lancaster","Special Purpose District"]
["Lancaster County School District","Lancaster","School District"]
["Lancaster County Water And Sewer","Lancaster","Special Purpose District"]
["Lando Fire District","Chester","Special Purpose District"]
["Landrum Community Fire District","Spartanburg","Special Purpose District"]
["Langley Water & Sewer District","Aiken","Special Purpose District"]
["Laurens County","Laurens","County"]
["Laurens County School District 55","Laurens","School District"]
["Laurens County School District 56","Laurens","School District"]
["Lee County","Lee","County"]
["Lee County School District","Lee","School District"]
["Lexington County","Lexington","County"]
["Lexington County Rural Recreation District","Lexington","Special Purpose District"]
["Lexington County School District 1","Lexington","School District"]
["Lexington County School District 2","Lexington","School District"]
["Lexington County School District 3","Lexington","School District"]
["Lexington County School District 4","Lexington","School District"]
["Lexington County School District 5","Lexington","School District"]
["Lexington Joint Municipal Water & Sewer District","Lexington","Special Purpose District"]
["Liberty Chesnee Fingerville Water District","Spartanburg","Special Purpose District"]
["Lockhart Fire District","Union","Special Purpose District"]
["Lugoff Fire District","Kershaw","Special Purpose District"]
["Marietta Water, Fire, Sanitation And Sewer","Greenville","Special Purpose District"]
["Marion County","Marion","County"]
["Marion County School District","Marion","School District"]
["Marlboro County","Marlboro","County"]
["Mauldin Fire Service Area","Greenville","Special Purpose District"]
["Mayo Area Fire District","Spartanburg","Special Purpose District"]
["McCormick County","McCormick","County"]
["McCormick County School District","McCormick","School District"]
["Meansville Riley Road Water Co.","Union","Special Purpose District"]
["Metropolitan Sewer","Greenville","Special Purpose District"]
["Midland Valley Fire Department, Inc","Aiken","Special Purpose District"]
["Mill Creek Special Purpose","Edgefield","Special Purpose District"]
["Monarch Fire District","Union","Special Purpose District"]
["Mountville Rural Fire Department","Laurens","Special Purpose District"]
["Murrells Inlet Garden City Fire District","Georgetown","Special Purpose District"]
["New Prospect Fire District","Spartanburg","Special Purpose District"]
["Newberry County","Newberry","County"]
["Newberry County School District","Newberry","School District"]
["Newberry County Water & Sewer","Newberry","Special Purpose District"]
["Newberry Hospital","Newberry","Special Purpose District"]
["North Greenville Fire District","Greenville","Special Purpose District"]
["North Spartanburg Fire District","Spartanburg","Special Purpose District"]
["Oconee County","Oconee","County"]
["Oconee County School District","Oconee","School District"]
["Orangeburg County","Orangeburg","County"]
["Orangeburg County School District","Orangeburg","School District"]
["Pacolet Station Fire District","Spartanburg","Special Purpose District"]
["Palmetto Rural Fire District","Darlington","Special Purpose District"]
["Parker Sewer And Fire Sub-District","Greenville","Special Purpose District"]
["Pelham Batesville Fire District","Spartanburg","Special Purpose District"]
["Philippi Fire District","Union","Special Purpose District"]
["Pickens County","Pickens","County"]
["Pickens County School District","Pickens","School District"]
["Piedmont Park Fire District","Greenville","Special Purpose District"]
["Piedmont Public Service District","Greenville","Special Purpose District"]
["Pioneer Rural Water District","Oconee","Special Purpose District"]
["Poplar Springs Fire District","Spartanburg","Special Purpose District"]
["Rabon Creek Watershed District 25","Greenville","Special Purpose District"]
["Reidville Fire District","Spartanburg","Special Purpose District"]
["Renno Rural Fire Department","Laurens","Special Purpose District"]
["Richburg Fire District","Chester","Special Purpose District"]
["Richland County","Richland","County"]
["Richland County Airport District","Richland","Special Purpose District"]
["Richland County Recreation Commission","Richland","Special Purpose District"]
["Richland County Riverbank Zoological Park","Richland","Special Purpose District"]
["Richland County School District One","Richland","School District"]
["Richland County School District Two","Richland","School District"]
["River Falls Fire Department","Greenville","Special Purpose District"]
["Rocky Creek Water Co.","Union","Special Purpose District"]
["Roebuck Fire District","Spartanburg","Special Purpose District"]
["Rural Fire District","Williamsburg","Special Purpose District"]
["Saluda County","Saluda","County"]
["Saluda County School District One","Saluda","School District"]
["Sandy Springs Fire Department","Laurens","Special Purpose District"]
["Sandy Springs Water District","Anderson","Special Purpose District"]
["Santuc Fire District","Union","Special Purpose District"]
["Sheldon Township Fire District","Beaufort","Special Purpose District"]
["Simpsonville Fire Service Area","Greenville","Special Purpose District"]
["Slater Marietta Fire District","Greenville","Special Purpose District"]
["Slater Water & Sewer District","Greenville","Special Purpose District"]
["South Greenville Fire District","Greenville","Special Purpose District"]
["South Lynches Fire District","Florence","Special Purpose District"]
["South Tyger River Watershed District 29","Greenville","Special Purpose District"]
["Southside Fire District","Union","Special Purpose District"]
["Spartanburg County","Spartanburg","County"]
["Spartanburg Metro Sub District B Water & Sewer ","Spartanburg","Special Purpose District"]
["Spartanburg School District 1","Spartanburg","School District"]
["Spartanburg School District 2","Spartanburg","School District"]
["Spartanburg School District 3","Spartanburg","School District"]
["Spartanburg School District 4","Spartanburg","School District"]
["Spartanburg School District 5","Spartanburg","School District"]
["Spartanburg School District 6","Spartanburg","School District"]
["Spartanburg School District 7","Spartanburg","School District"]
["Spartanburg Water & Sewer District","Spartanburg","Special Purpose District"]
["St. Andrews Public Service District","Charleston","Special Purpose District"]
["St. John's Fire District","Charleston","Special Purpose District"]
["St. Paul's Fire District","Charleston","Special Purpose District"]
["Starr-Iva Water And Sewer District","Anderson","Special Purpose District"]
["Startex Fire District","Spartanburg","Special Purpose District"]
["Startex Jackson Wellford Duncan Water District","Spartanburg","Special Purpose District"]
["Sumter County","Sumter","County"]
["Sumter County School District","Sumter","School District"]
["Talatha Rural Community Water District","Aiken","Special Purpose District"]
["Taylors Fire & Sewer District","Greenville","Special Purpose District"]
["Three & Twenty Creek Watershed","Anderson","Special Purpose District"]
["Tigerville Fire District","Greenville","Special Purpose District"]
["Town Of Allendale","Allendale","Municipality"]
["Town Of Andrews","Georgetown","Municipality"]
["Town Of Arcadia Lakes","Richland","Municipality"]
["Town Of Atlantic Beach","Horry","Municipality"]
["Town Of Awendaw","Charleston","Municipality"]
["Town Of Aynor","Horry","Municipality"]
["Town Of Batesburg-Leesville","Lexington","Municipality"]
["Town Of Bethune","Kershaw","Municipality"]
["Town Of Blacksburg","Cherokee","Municipality"]
["Town Of Blackville","Barnwell","Municipality"]
["Town Of Blenheim","Marlboro","Municipality"]
["Town Of Bluffton","Beaufort","Municipality"]
["Town Of Blythewood","Richland","Municipality"]
["Town Of Bonneau","Berkeley","Municipality"]
["Town Of Bowman","Orangeburg","Municipality"]
["Town Of Branchville","Orangeburg","Municipality"]
["Town Of Briarcliffe Acres","Horry","Municipality"]
["Town Of Brunson","Hampton","Municipality"]
["Town Of Burnettown","Aiken","Municipality"]
["Town Of Calhoun Falls","Abbeville","Municipality"]
["Town Of Cameron","Calhoun","Municipality"]
["Town Of Campobello","Spartanburg","Municipality"]
["Town Of Carlisle","Union","Municipality"]
["Town Of Central","Pickens","Municipality"]
["Town Of Central Pacolet","Spartanburg","Municipality"]
["Town Of Chapin","Lexington","Municipality"]
["Town Of Cheraw","Chesterfield","Municipality"]
["Town Of Chesterfield","Chesterfield","Municipality"]
["Town Of Clio","Marlboro","Municipality"]
["Town Of Clover","York","Municipality"]
["Town Of Cope","Orangeburg","Municipality"]
["Town Of Cordova","Orangeburg","Municipality"]
["Town Of Cottageville","Colleton","Municipality"]
["Town Of Coward","Florence","Municipality"]
["Town Of Cowpens","Spartanburg","Municipality"]
["Town Of Cross Hill","Laurens","Municipality"]
["Town Of Donalds","Abbeville","Municipality"]
["Town Of Due West","Abbeville","Municipality"]
["Town Of Duncan","Spartanburg","Municipality"]
["Town Of Eastover","Richland","Municipality"]
["Town Of Edgefield","Edgefield","Municipality"]
["Town Of Edisto Beach","Colleton","Municipality"]
["Town Of Ehrhardt","Bamberg","Municipality "]
["Town Of Elgin","Kershaw","Municipality"]
["Town Of Elko","Barnwell","Municipality"]
["Town Of Elloree","Orangeburg","Municipality"]
["Town Of Estill","Hampton","Municipality"]
["Town Of Eutawville","Orangeburg","Municipality"]
["Town Of Fairfax","Allendale","Municipality"]
["Town Of Fort Lawn","Chester","Municipality"]
["Town Of Fort Mill","York","Municipality"]
["Town Of Furman","Hampton","Municipality"]
["Town Of Gaston","Lexington","Municipality"]
["Town Of Gifford","Hampton","Municipality"]
["Town Of Gilbert","Lexington","Municipality"]
["Town Of Govan","Bamberg","Municipality"]
["Town Of Gray Court","Laurens","Municipality"]
["Town Of Great Falls","Chester","Municipality"]
["Town Of Greeleyville","Williamsburg","Municipality"]
["Town Of Hampton","Hampton","Municipality"]
["Town Of Harleyville","Dorchester","Municipality"]
["Town Of Heath Springs","Lancaster","Municipality"]
["Town Of Hemingway","Williamsburg","Municipality"]
["Town Of Hickory Grove","York","Municipality"]
["Town Of Hilton Head Island","Beaufort","Municipality"]
["Town Of Hodges","Greenwood","Municipality"]
["Town Of Holly Hill","Orangeburg","Municipality"]
["Town Of Hollywood","Charleston","Municipality"]
["Town Of Honea Path","Anderson","Municipality"]
["Town Of Irmo","Lexington","Municipality"]
["Town Of Jackson","Aiken","Municipality"]
["Town Of Jamestown","Berkeley","Municipality"]
["Town Of Jefferson","Chesterfield","Municipality"]
["Town Of Johnston","Edgefield","Municipality"]
["Town Of Jonesville","Union","Municipality"]
["Town Of Kershaw","Lancaster","Municipality"]
["Town Of Kiawah Island","Charleston","Municipality"]
["Town Of Kingstree","Williamsburg","Municipality"]
["Town Of Kline","Barnwell","Municipality"]
["Town Of Lake View","Dillon","Municipality"]
["Town Of Lane","Williamsburg","Municipality"]
["Town Of Latta","Dillon","Municipality"]
["Town Of Lexington","Lexington","Municipality"]
["Town Of Lincolnville","Charleston","Municipality"]
["Town Of Little Mountain","Newberry","Municipality"]
["Town Of Livingston","Orangeburg","Municipality"]
["Town Of Lockhart","Union","Municipality"]
["Town Of Lodge","Colleton","Municipality"]
["Town Of Lowndesville","Abbeville","Municipality"]
["Town Of Lowrys","Chester","Municipality"]
["Town Of Luray","Hampton","Municipality"]
["Town Of Lyman","Spartanburg","Municipality"]
["Town Of Lynchburg","Lee","Municipality"]
["Town Of Mayesville","Sumter","Municipality"]
["Town Of Mcbee","Chesterfield","Municipality"]
["Town Of Mcclellanville","Charleston","Municipality"]
["Town Of Mccoll","Marlboro","Municipality"]
["Town Of Mcconnells","York","Municipality"]
["Town Of McCormick","McCormick","Municipality"]
["Town Of Meggett","Charleston","Municipality"]
["Town Of Moncks Corner","Berkeley","Municipality"]
["Town Of Monetta","Aiken","Municipality"]
["Town Of Mount Pleasant","Charleston","Municipality"]
["Town Of Mt. Croghan","Chesterfield","Municipality"]
["Town Of Neeses","Orangeburg","Municipality"]
["Town Of Nichols","Marion","Municipality"]
["Town Of Ninety Six","Greenwood","Municipality"]
["Town Of Norris","Pickens","Municipality"]
["Town Of North","Orangeburg","Municipality"]
["Town Of Norway","Orangeburg","Municipality"]
["Town Of Olanta","Florence","Municipality"]
["Town Of Olar","Bamberg","Municipality"]
["Town Of Pacolet","Spartanburg","Municipality"]
["Town Of Pageland","Chesterfield","Municipality"]
["Town Of Pamplico","Florence","Municipality"]
["Town Of Parksville","McCormick","Municipality"]
["Town Of Patrick","Chesterfield","Municipality"]
["Town Of Pawleys Island","Georgetown","Municipality"]
["Town Of Paxville","Clarendon","Municipality"]
["Town Of Peak","Newberry","Municipality"]
["Town Of Pelion","Lexington","Municipality"]
["Town Of Pelzer","Anderson","Municipality"]
["Town Of Pendleton","Anderson","Municipality"]
["Town Of Perry","Aiken","Municipality"]
["Town Of Pine Ridge","Lexington","Municipality"]
["Town Of Pinewood","Sumter","Municipality"]
["Town Of Plum Branch","McCormick","Municipality"]
["Town Of Pomaria","Newberry","Municipality"]
["Town Of Port Royal","Beaufort","Municipality"]
["Town Of Prosperity","Newberry","Municipality"]
["Town Of Quinby","Florence","Municipality"]
["Town Of Ravenel","Charleston","Municipality"]
["Town Of Reevesville","Dorchester","Municipality"]
["Town Of Reidville","Spartanburg","Municipality"]
["Town Of Richburg","Chester","Municipality"]
["Town Of Ridge Spring","Saluda","Municipality"]
["Town Of Ridgeland","Jasper","Municipality"]
["Town Of Ridgeville","Dorchester","Municipality"]
["Town Of Ridgeway","Fairfield","Municipality"]
["Town Of Rockville","Charleston","Municipality"]
["Town Of Rowesville","Orangeburg","Municipality"]
["Town Of Ruby","Chesterfield","Municipality"]
["Town Of Salley","Aiken","Municipality"]
["Town Of Saluda","Saluda","Municipality"]
["Town Of Santee","Orangeburg","Municipality"]
["Town Of Scotia","Hampton","Municipality"]
["Town Of Scranton","Florence","Municipality"]
["Town Of Seabrook Island","Charleston","Municipality"]
["Town Of Sharon","York","Municipality"]
["Town Of Silverstreet","Newberry","Municipality"]
["Town Of Six Mile","Pickens","Municipality"]
["Town Of Smoaks","Colleton","Municipality"]
["Town Of Smyrna","York","Municipality"]
["Town Of Snelling","Barnwell","Municipality"]
["Town Of Society Hill","Darlington","Municipality"]
["Town Of South Congaree","Lexington","Municipality"]
["Town Of Springdale","Lexington","Municipality"]
["Town Of Springfield","Orangeburg","Municipality"]
["Town Of St. Matthews","Calhoun","Municipality"]
["Town Of St. Stephen","Berkeley","Municipality"]
["Town Of Starr","Anderson","Municipality"]
["Town Of Stuckey","Williamsburg","Municipality"]
["Town Of Sullivan's Island","Charleston","Municipality"]
["Town Of Summerton","Clarendon","Municipality"]
["Town Of Summerville","Dorchester","Municipality"]
["Town Of Summit","Lexington","Municipality"]
["Town Of Surfside Beach","Horry","Municipality"]
["Town Of Swansea","Lexington","Municipality"]
["Town Of Sycamore","Allendale","Municipality"]
["Town Of Tatum","Marlboro","Municipality"]
["Town Of Timmonsville","Florence","Municipality"]
["Town Of Trenton","Edgefield","Municipality"]
["Town Of Troy","Greenwood","Municipality"]
["Town Of Turbeville","Clarendon","Municipality"]
["Town Of Ulmer","Allendale","Municipality"]
["Town Of Vance","Orangeburg","Municipality"]
["Town Of Varnville","Hampton","Municipality"]
["Town Of Wagener","Aiken","Municipality"]
["Town Of Ward","Saluda","Municipality"]
["Town Of Ware Shoals","Greenwood","Municipality"]
["Town Of Waterloo","Laurens","Municipality"]
["Town Of West Pelzer","Anderson","Municipality"]
["Town Of West Union","Oconee","Municipality"]
["Town Of Whitmire","Newberry","Municipality"]
["Town Of Williamston","Anderson","Municipality"]
["Town Of Williston","Barnwell","Municipality"]
["Town Of Winnsboro","Fairfield","Municipality"]
["Town Of Woodford","Orangeburg","Municipality"]
["Town Of Yemassee","Hampton","Municipality"]
["Tyger Fire District","Spartanburg","Special Purpose District"]
["Una Community Fire District","Spartanburg","Special Purpose District"]
["Union County","Union","County"]
["Union County School District","Union","School District"]
["Valley Public Service Authority","Aiken","Special Purpose District"]
["Wade Hampton Fire And Sewer District","Greenville","Special Purpose District"]
["Waterloo Fire Department","Laurens","Special Purpose District"]
["Western Laurens Rural Fire Department","Laurens","Special Purpose District"]
["Westview Fairforest Fire District","Spartanburg","Special Purpose District"]
["Whitney Fire District","Spartanburg","Special Purpose District"]
["Williamsburg County","Williamsburg","County"]
["Williamsburg County School District","Williamsburg","School District"]
["Williamsburg Water & Sewer District","Williamsburg","Special Purpose District"]
["Woodruff Fire District","Spartanburg","Special Purpose District"]
["Woodruff Roebuck Water District","Spartanburg","Special Purpose District"]
["York County","York","County"]
["York County Natural Gas Authority","York","Special Purpose District"]
["York School District 1","York","School District"]
["York School District 2","York","School District"]
["York School District 3","York","School District"]
["York School District 4","York","School District"]
["Youngs Rural Fire Department","Laurens","Special Purpose District"]

{"sheet":"Dropdowns","index":8,"n_rows":47,"n_cols":4,"rows_kept":47,"cut":false,"hidden":true,"merged":[]}
["CountyNo","CountyTxt",null,"ReportingEntityType"]
["001","Abbeville",null,"County"]
["002","Aiken",null,"School District"]
["003","Allendale",null,"Municipality"]
["004","Anderson",null,"Special Purpose District"]
["005","Bamberg"]
["006","Barnwell"]
["007","Beaufort"]
["008","Berkeley"]
["009","Calhoun"]
["010","Charleston"]
["011","Cherokee"]
["012","Chester"]
["013","Chesterfield"]
["014","Clarendon"]
["015","Colleton"]
["016","Darlington"]
["017","Dillon"]
["018","Dorchester"]
["019","Edgefield"]
["020","Fairfield"]
["021","Florence"]
["022","Georgetown"]
["023","Greenville"]
["024","Greenwood"]
["025","Hampton"]
["026","Horry"]
["027","Jasper"]
["028","Kershaw"]
["029","Lancaster"]
["030","Laurens"]
["031","Lee"]
["032","Lexington"]
["033","Mccormick"]
["034","Marion"]
["035","Marlboro"]
["036","Newberry"]
["037","Oconee"]
["038","Orangeburg"]
["039","Pickens"]
["040","Richland"]
["041","Saluda"]
["042","Spartanburg"]
["043","Sumter"]
["044","Union"]
["045","Williamsburg"]
["046","York"]